[Event "FIDE WSTC Open 65 2025"]
[Site "Prague"]
[Date "2025.02.17"]
[Round "1.18"]
[White "Polasek, Jaroslav"]
[Black "White, Alastair F"]
[Result "1/2-1/2"]
[Annotator "ChessBase"]
[ECO "C25"]
[WhiteElo "2344"]
[BlackElo "1982"]
[PlyCount "112"]
[EventDate "2025.02.17"]
[EventType "team-tourn"]
[EventCountry "CZE"]
[SourceTitle "playchess.com"]
[Source "ChessBase"]
[SourceQuality "1"]
[TimeControl "40/5400+30:1800+30"]

1. e4 {[%emt 0:00:03]} e5 {[%emt 0:00:21]} 2. Nc3 {[%emt 0:00:30]} Nc6 {[%emt 0:00:54]} 3. f4 {[%emt 0:00:14]} exf4 {[%emt 0:01:40]} 4. Nf3 {[%emt 0:01:59]} g5 {[%emt 0:01:42]} 5. g3 {[%emt 0:00:14]} Bg7 {[%emt 0:08:21]} 6. Bc4 {[%emt 0:10:50]} d6 {[%emt 0:15:01]} 7. gxf4 {[%emt 0:00:43]} gxf4 {[%emt 0:05:57]} 8. d3 {[%emt 0:32:23]} Bg4 {[%emt 0:15:46]} 9. Bb5 {[%emt 0:01:52]} Bxc3+ {[%emt 0:10:00]} 10. bxc3 {[%emt 0:00:09]} Qf6 {[%emt 0:00:42]} 11. d4 {[%emt 0:01:08]} O-O-O {[%emt 0:00:59]} 12. h3 {[%emt 0:02:30]} Bh5 {[%emt 0:01:54]} 13. Bxc6 {[%emt 0:12:40]} bxc6 {[%emt 0:00:06]} 14. Qd3 {[%emt 0:00:04]} Ne7 {[%emt 0:10:02]} 15. Ba3 {[%emt 0:03:06]} Bxf3 {[%emt 0:02:23]} 16. Qxf3 {[%emt 0:00:05]} Qh4+ {[%emt 0:00:34]} 17. Kd2 {[%emt 0:02:39]} Rhg8 {[%emt 0:00:34]} 18. Raf1 {[%emt 0:00:11]} f5 {[%emt 0:06:09]} 19. Qxf4 {[%emt 0:03:41]} Rg2+ {[%emt 0:01:15]} 20. Kc1 {[%emt 0:02:16]} Qxf4+ {[%emt 0:01:26]} 21. Rxf4 {[%emt 0:00:05]} fxe4 {[%emt 0:00:22]} 22. Rxe4 {[%emt 0:01:08]} Nd5 {[%emt 0:01:41]} 23. c4 {[%emt 0:04:21]} Nb6 {[%emt 0:00:59]} 24. c5 {[%emt 0:01:48]} Nc4 {[%emt 0:00:12]} 25. Bb4 {[%emt 0:00:21]} Rf8 {[%emt 0:03:08]} 26. Be1 {[%emt 0:10:01]} Na3 {[%emt 0:01:56]} 27. cxd6 {[%emt 0:00:18]} cxd6 {[%emt 0:03:11]} 28. Bb4 {[%emt 0:03:25]} Rxc2+ {[%emt 0:01:02]} 29. Kd1 {[%emt 0:00:08]} Rxa2 {[%emt 0:00:20]} 30. Rhe1 {[%emt 0:00:32]} Nc2 {[%emt 0:02:03]} 31. Bxd6 {[%emt 0:00:37]} Rd8 {[%emt 0:02:23]} 32. R1e2 {[%emt 0:00:56]} Rxd6 {[%emt 0:00:13]} 33. Rxc2 {[%emt 0:00:03]} Rxc2 {[%emt 0:00:50]} 34. Kxc2 {[%emt 0:00:02]} Kd7 {[%emt 0:00:31]} 35. Kc3 {[%emt 0:01:17]} Rg6 {[%emt 0:00:18]} 36. Kc4 {[%emt 0:00:53]} Kd6 {[%emt 0:00:12]} 37. Rf4 {[%emt 0:02:52]} a5 {[%emt 0:01:20]} 38. h4 {[%emt 0:01:06]} Rh6 {[%emt 0:01:28]} 39. Rg4 {[%emt 0:00:49]} Rh5 {[%emt 0:00:23]} 40. Rf4 {[%emt 0:00:31]} Kc7 {[%emt 0:00:16]} 41. Kb3 {[%emt 0:02:44]} Kb6 {[%emt 0:00:32]} 42. Ka4 {[%emt 0:01:30]} Rb5 {[%emt 0:01:16]} 43. Rf7 {[%emt 0:02:14]} h5 {[%emt 0:02:03]} 44. Rh7 {[%emt 0:00:30]} Rd5 {[%emt 0:00:36]} 45. Kb3 {[%emt 0:00:23]} a4+ {[%emt 0:01:26]} 46. Ka3 {[%emt 0:05:50]} Kb5 {[%emt 0:03:30]} 47. Rh6 {[%emt 0:00:31]} Rf5 {[%emt 0:04:04]} 48. Rg6 {[%emt 0:00:19]} Rf3+ {[%emt 0:04:29]} 49. Ka2 {[%emt 0:00:34]} Rf5 {[%emt 0:03:46]} 50. Ka3 {[%emt 0:00:33]} Rd5 {[%emt 0:03:48]} 51. Rh6 {[%emt 0:00:29]} c5 {[%emt 0:02:51]} 52. dxc5 {[%emt 0:00:27]} Kxc5 {[%emt 0:01:39]} 53. Kxa4 {[%emt 0:00:56]} Rd4+ {[%emt 0:00:15]} 54. Kb3 {[%emt 0:00:02]} Rxh4 {[%emt 0:00:11]} 55. Kc3 {[%emt 0:00:03]} Rh3+ {[%emt 0:00:31]} 56. Kd2 {[%emt 0:00:04]} Kd4 {[%emt 0:03:21]} 1/2-1/2

[Event "FIDE WSTC Open 65 2025"]
[Site "Prague"]
[Date "2025.02.17"]
[Round "1.19"]
[White "McAndrew, Robert"]
[Black "Mozny, Milos"]
[Result "1/2-1/2"]
[Annotator "ChessBase"]
[ECO "A26"]
[WhiteElo "1951"]
[BlackElo "2232"]
[PlyCount "26"]
[EventDate "2025.02.17"]
[EventType "team-tourn"]
[EventCountry "CZE"]
[SourceTitle "playchess.com"]
[Source "ChessBase"]
[SourceQuality "1"]
[TimeControl "40/5400+30:1800+30"]

1. c4 {[%emt 0:00:05]} e5 {[%emt 0:00:32]} 2. g3 {[%emt 0:00:14]} g6 {[%emt 0:00:25]} 3. Bg2 {[%emt 0:02:00]} Bg7 {[%emt 0:00:10]} 4. Nc3 {[%emt 0:01:38]} Nc6 {[%emt 0:00:17]} 5. d3 {[%emt 0:01:25]} Nge7 {[%emt 0:00:24]} 6. e4 {[%emt 0:07:22]} d6 {[%emt 0:00:15]} 7. Be3 {[%emt 0:02:38]} Be6 {[%emt 0:03:39]} 8. Qd2 {[%emt 0:06:52]} h6 {[%emt 0:01:45]} 9. Nge2 {[%emt 0:19:53]} Nd4 {[%emt 0:02:53]} 10. O-O {[%emt 0:01:05]} Qd7 {[%emt 0:05:46]} 11. f4 {[%emt 0:05:48]} c5 {[%emt 0:00:39]} 12. Bxd4 {[%emt 0:02:55]} cxd4 {[%emt 0:00:22]} 13. Nd5 {[%emt 0:01:07]} h5 {[%emt 0:06:04]} 1/2-1/2

[Event "FIDE WSTC Open 65 2025"]
[Site "Prague"]
[Date "2025.02.17"]
[Round "1.20"]
[White "Meduna, Eduard"]
[Black "Marks, Ian A"]
[Result "1-0"]
[Annotator "ChessBase"]
[ECO "E11"]
[WhiteElo "2305"]
[BlackElo "1909"]
[PlyCount "81"]
[EventDate "2025.02.17"]
[EventType "team-tourn"]
[EventCountry "CZE"]
[SourceTitle "playchess.com"]
[Source "ChessBase"]
[SourceQuality "1"]
[TimeControl "40/5400+30:1800+30"]

1. d4 {[%emt 0:00:12]} Nf6 {[%emt 0:00:11]} 2. c4 {[%emt 0:00:54]} e6 {[%emt 0:00:22]} 3. Nf3 {[%emt 0:00:11]} Bb4+ {[%emt 0:00:13]} 4. Bd2 {[%emt 0:00:12]} Qe7 {[%emt 0:00:15]} 5. g3 {[%emt 0:00:49]} O-O {[%emt 0:00:55]} 6. Bg2 {[%emt 0:00:17]} Bxd2+ {[%emt 0:01:17]} 7. Nbxd2 {[%emt 0:00:17]} d6 {[%emt 0:00:28]} 8. e4 {[%emt 0:00:19]} e5 {[%emt 0:01:01]} 9. d5 {[%emt 0:00:24]} a5 {[%emt 0:01:12]} 10. O-O {[%emt 0:00:09]} Nbd7 {[%emt 0:00:41]} 11. b3 {[%emt 0:00:52]} Nc5 {[%emt 0:01:18]} 12. Qc2 {[%emt 0:00:25]} Nh5 {[%emt 0:03:51]} 13. a3 {[%emt 0:07:04]} f5 {[%emt 0:04:04]} 14. b4 {[%emt 0:00:12]} Nxe4 {[%emt 0:00:53]} 15. Nxe4 {[%emt 0:00:16]} fxe4 {[%emt 0:00:03]} 16. Qxe4 {[%emt 0:00:04]} Bf5 {[%emt 0:00:48]} 17. Qe3 {[%emt 0:00:43]} h6 {[%emt 0:02:27]} 18. Nd4 {[%emt 0:09:48]} Bd7 {[%emt 0:06:43]} 19. Ne6 {[%emt 0:00:12]} Bxe6 {[%emt 0:00:51]} 20. dxe6 {[%emt 0:00:12]} c6 {[%emt 0:01:33]} 21. b5 {[%emt 0:00:50]} cxb5 {[%emt 0:01:10]} 22. cxb5 {[%emt 0:00:35]} Rfc8 {[%emt 0:03:58]} 23. Rac1 {[%emt 0:02:00]} Nf6 {[%emt 0:05:54]} 24. Bh3 {[%emt 0:05:37]} Nh7 {[%emt 0:05:37]} 25. f4 {[%emt 0:04:12]} exf4 {[%emt 0:07:03]} 26. gxf4 {[%emt 0:00:32]} Nf6 {[%emt 0:01:45]} 27. Bg2 {[%emt 0:06:50]} Rc5 {[%emt 0:12:26]} 28. Rxc5 {[%emt 0:00:50]} dxc5 {[%emt 0:00:01]} 29. Rd1 {[%emt 0:04:43]} Rd8 {[%emt 0:08:52]} 30. Re1 {[%emt 0:32:51]} c4 {[%emt 0:13:03]} 31. h3 {[%emt 0:02:59]} Rd3 {[%emt 0:00:49]} 32. Qa7 {[%emt 0:02:02]} Rxa3 {[%emt 0:01:49]} 33. Qxb7 {[%emt 0:01:41]} Qc5+ {[%emt 0:01:26]} 34. Kh1 {[%emt 0:00:38]} Re3 {[%emt 0:03:26]} 35. Rxe3 {[%emt 0:01:13]} Qxe3 {[%emt 0:00:02]} 36. Qc8+ {[%emt 0:00:14]} Kh7 {[%emt 0:00:18]} 37. Qxc4 {[%emt 0:00:10]} Qe1+ {[%emt 0:05:21]} 38. Kh2 {[%emt 0:00:24]} Qd2 {[%emt 0:03:55]} 39. b6 {[%emt 0:01:34]} Nh5 {[%emt 0:00:44]} 40. b7 {[%emt 0:02:23]} Nxf4 {[%emt 0:00:55]} 41. Qe4+ {[%emt 0:30:16]} 1-0

[Event "FIDE WSTC Open 65 2025"]
[Site "Prague"]
[Date "2025.02.17"]
[Round "1.21"]
[White "Yrjola, Jouni"]
[Black "Zoernpfenning, Siegfried"]
[Result "1-0"]
[Annotator "ChessBase"]
[ECO "A34"]
[WhiteElo "2287"]
[BlackElo "2063"]
[PlyCount "79"]
[EventDate "2025.02.17"]
[EventType "team-tourn"]
[EventCountry "CZE"]
[SourceTitle "playchess.com"]
[Source "ChessBase"]
[SourceQuality "1"]
[TimeControl "40/5400+30:1800+30"]

1. c4 {[%emt 0:00:07]} Nf6 {[%emt 0:00:32]} 2. Nc3 {[%emt 0:00:11]} c5 {[%emt 0:01:17]} 3. Nf3 {[%emt 0:01:03]} d5 {[%emt 0:02:07]} 4. cxd5 {[%emt 0:00:59]} Nxd5 {[%emt 0:00:10]} 5. e4 {[%emt 0:02:38]} Nc7 {[%emt 0:05:33]} 6. d4 {[%emt 0:21:26]} cxd4 {[%emt 0:08:52]} 7. Qxd4 {[%emt 0:03:37]} Qxd4 {[%emt 0:00:40]} 8. Nxd4 {[%emt 0:00:07]} e5 {[%emt 0:00:31]} 9. Ndb5 {[%emt 0:01:45]} Nxb5 {[%emt 0:05:05]} 10. Nxb5 {[%emt 0:12:54]} Bb4+ {[%emt 0:00:25]} 11. Bd2 {[%emt 0:00:19]} Bxd2+ {[%emt 0:00:20]} 12. Kxd2 {[%emt 0:00:07]} Na6 {[%emt 0:00:17]} 13. Bc4 {[%emt 0:01:50]} Ke7 {[%emt 0:02:20]} 14. Rhc1 {[%emt 0:01:39]} Bd7 {[%emt 0:01:10]} 15. Nc3 {[%emt 0:03:16]} Nc7 {[%emt 0:06:00]} 16. Nd5+ {[%emt 0:12:17]} Nxd5 {[%emt 0:00:13]} 17. Bxd5 {[%emt 0:00:05]} Kd6 {[%emt 0:00:18]} 18. Ke3 {[%emt 0:00:37]} f5 {[%emt 0:01:33]} 19. exf5 {[%emt 0:03:20]} Bxf5 {[%emt 0:00:08]} 20. Rd1 {[%emt 0:01:15]} Ke7 {[%emt 0:00:52]} 21. Rac1 {[%emt 0:01:29]} Rhd8 {[%emt 0:01:41]} 22. Rc7+ {[%emt 0:10:15]} Rd7 {[%emt 0:00:17]} 23. Rxd7+ {[%emt 0:00:23]} Bxd7 {[%emt 0:00:11]} 24. Be4 {[%emt 0:05:04]} Bc6 {[%emt 0:01:40]} 25. Bxc6 {[%emt 0:00:20]} bxc6 {[%emt 0:00:07]} 26. Rc1 {[%emt 0:02:35]} Kd6 {[%emt 0:00:23]} 27. Rc4 {[%emt 0:00:44]} a5 {[%emt 0:03:05]} 28. Rh4 {[%emt 0:01:21]} h6 {[%emt 0:00:16]} 29. Rg4 {[%emt 0:00:09]} Ra7 {[%emt 0:01:19]} 30. b3 {[%emt 0:00:26]} Kd5 {[%emt 0:00:33]} 31. Kd3 {[%emt 0:00:27]} c5 {[%emt 0:00:50]} 32. f3 {[%emt 0:02:22]} Rb7 {[%emt 0:08:12]} 33. Kc3 {[%emt 0:00:49]} h5 {[%emt 0:01:09]} 34. Rg5 {[%emt 0:01:05]} Rb4 {[%emt 0:02:35]} 35. Rxh5 {[%emt 0:02:23]} a4 {[%emt 0:01:38]} 36. Rg5 {[%emt 0:00:52]} axb3 {[%emt 0:00:14]} 37. axb3 {[%emt 0:00:09]} Rf4 {[%emt 0:01:00]} 38. Rxg7 {[%emt 0:01:09]} e4 {[%emt 0:02:34]} 39. Rg5+ {[%emt 0:00:25]} Kc6 {[%emt 0:00:09]} 40. Rg4 {[%emt 0:04:17]} 1-0

[Event "FIDE WSTC Open 65 2025"]
[Site "Prague"]
[Date "2025.02.17"]
[Round "1.22"]
[White "Pregl, Walter"]
[Black "Henttinen, Markku I.O."]
[Result "1/2-1/2"]
[Annotator "ChessBase"]
[ECO "A36"]
[WhiteElo "1955"]
[BlackElo "2223"]
[PlyCount "122"]
[EventDate "2025.02.17"]
[EventType "team-tourn"]
[EventCountry "CZE"]
[SourceTitle "playchess.com"]
[Source "ChessBase"]
[SourceQuality "1"]
[TimeControl "40/5400+30:1800+30"]

1. c4 {[%emt 0:00:07]} c5 {[%emt 0:00:22]} 2. Nc3 {[%emt 0:00:16]} Nc6 {[%emt 0:00:58]} 3. Nf3 {[%emt 0:00:28]} g6 {[%emt 0:01:28]} 4. g3 {[%emt 0:02:27]} Bg7 {[%emt 0:01:32]} 5. Bg2 {[%emt 0:00:07]} e6 {[%emt 0:03:32]} 6. e4 {[%emt 0:04:53]} Nge7 {[%emt 0:01:27]} 7. O-O {[%emt 0:00:28]} O-O {[%emt 0:00:35]} 8. d3 {[%emt 0:07:27]} d6 {[%emt 0:02:01]} 9. Be3 {[%emt 0:09:56]} Nd4 {[%emt 0:04:16]} 10. Nh4 {[%emt 0:08:15]} Rb8 {[%emt 0:08:44]} 11. Rc1 {[%emt 0:03:45]} a6 {[%emt 0:02:43]} 12. f4 {[%emt 0:00:36]} b5 {[%emt 0:01:34]} 13. b3 {[%emt 0:00:34]} f5 {[%emt 0:15:11]} 14. Ne2 {[%emt 0:10:15]} Bb7 {[%emt 0:12:08]} 15. Nxd4 {[%emt 0:02:53]} cxd4 {[%emt 0:00:13]} 16. Bf2 {[%emt 0:02:00]} e5 {[%emt 0:01:55]} 17. Qe2 {[%emt 0:12:08]} Re8 {[%emt 0:17:10]} 18. Rce1 {[%emt 0:12:49]} bxc4 {[%emt 0:03:33]} 19. bxc4 {[%emt 0:01:50]} Bc6 {[%emt 0:03:43]} 20. Nf3 {[%emt 0:03:23]} fxe4 {[%emt 0:01:59]} 21. dxe4 {[%emt 0:00:16]} Qc7 {[%emt 0:04:48]} 22. Ng5 {[%emt 0:02:39]} Bd7 {[%emt 0:01:03]} 23. Rc1 {[%emt 0:03:52]} h6 {[%emt 0:01:14]} 24. Nf3 {[%emt 0:00:16]} Qc5 {[%emt 0:00:23]} 25. Rfd1 {[%emt 0:00:31]} Rec8 {[%emt 0:01:21]} 26. Bf1 {[%emt 0:02:43]} Be6 {[%emt 0:01:17]} 27. Nd2 {[%emt 0:01:51]} Rb2 {[%emt 0:03:13]} 28. Nb3 {[%emt 0:01:32]} Qa3 {[%emt 0:00:13]} 29. Rd2 {[%emt 0:01:13]} Rxd2 {[%emt 0:00:18]} 30. Qxd2 {[%emt 0:00:17]} Nc6 {[%emt 0:00:26]} 31. Be1 {[%emt 0:01:40]} Bf8 {[%emt 0:01:18]} 32. Rc2 {[%emt 0:01:48]} Rb8 {[%emt 0:00:35]} 33. Qf2 {[%emt 0:01:21]} a5 {[%emt 0:02:28]} 34. f5 {[%emt 0:00:19]} gxf5 {[%emt 0:00:37]} 35. exf5 {[%emt 0:00:02]} Bf7 {[%emt 0:00:16]} 36. Bg2 {[%emt 0:00:47]} Ne7 {[%emt 0:01:20]} 37. f6 {[%emt 0:00:46]} Ng6 {[%emt 0:00:17]} 38. Qf5 {[%emt 0:00:44]} a4 {[%emt 0:01:57]} 39. Bd5 {[%emt 0:00:02]} Nh8 {[%emt 0:00:37]} 40. Bxf7+ {[%emt 0:01:35]} Nxf7 {[%emt 0:01:08]} 41. Qg6+ {[%emt 0:30:54]} Kh8 {[%emt 0:30:12]} 42. Qxf7 {[%emt 0:01:07]} axb3 {[%emt 0:00:28]} 43. axb3 {[%emt 0:00:19]} Qxb3 {[%emt 0:00:55]} 44. Rf2 {[%emt 0:00:00]} Qb1 {[%emt 0:00:00]} 45. Rf1 {[%emt 0:00:00]} Qh7 {[%emt 0:00:00]} 46. Qd5 {[%emt 0:00:00]} Qb7 {[%emt 0:00:00]} 47. Qe6 {[%emt 0:00:00]} Qe4 {[%emt 0:00:00]} 48. Qf7 {[%emt 0:00:00]} d3 {[%emt 0:00:00]} 49. Ba5 {[%emt 0:00:00]} Qh7 {[%emt 0:00:00]} 50. Qd5 {[%emt 0:00:00]} Qa7+ {[%emt 0:00:00]} 51. Rf2 {[%emt 0:00:00]} Rb2 {[%emt 0:00:00]} 52. Be1 {[%emt 0:00:00]} Qe3 {[%emt 0:00:00]} 53. Kg2 {[%emt 0:01:06]} Re2 {[%emt 0:00:00]} 54. Qf7 {[%emt 0:00:33]} Rxf2+ {[%emt 0:01:49]} 55. Bxf2 {[%emt 0:00:03]} Qe4+ {[%emt 0:00:19]} 56. Kg1 {[%emt 0:00:35]} Qa8 {[%emt 0:00:30]} 57. Be3 {[%emt 0:01:01]} Qc8 {[%emt 0:01:46]} 58. Kf2 {[%emt 0:01:31]} Qf5+ {[%emt 0:00:54]} 59. Kg1 {[%emt 0:00:25]} Qc8 {[%emt 0:00:16]} 60. Kf2 {[%emt 0:00:08]} Qf5+ {[%emt 0:00:22]} 61. Kg1 {[%emt 0:01:11]} Qc8 {[%emt 0:00:06]} 1/2-1/2

[Event "FIDE WSTC Open 65 2025"]
[Site "Prague"]
[Date "2025.02.17"]
[Round "1.23"]
[White "Westerinen, Heikki M.J."]
[Black "Lang, Karl"]
[Result "1-0"]
[Annotator "ChessBase"]
[ECO "C10"]
[WhiteElo "2213"]
[BlackElo "1930"]
[PlyCount "45"]
[EventDate "2025.02.17"]
[EventType "team-tourn"]
[EventCountry "CZE"]
[SourceTitle "playchess.com"]
[Source "ChessBase"]
[SourceQuality "1"]
[TimeControl "40/5400+30:1800+30"]

1. e4 {[%emt 0:00:30]} e6 {[%emt 0:00:12]} 2. d4 {[%emt 0:00:22]} d5 {[%emt 0:00:07]} 3. Nd2 {[%emt 0:01:02]} dxe4 {[%emt 0:02:54]} 4. Nxe4 {[%emt 0:00:08]} Nd7 {[%emt 0:00:24]} 5. Bd3 {[%emt 0:01:42]} Ngf6 {[%emt 0:00:14]} 6. Qe2 {[%emt 0:00:55]} c5 {[%emt 0:05:08]} 7. Nf3 {[%emt 0:04:55]} Nxe4 {[%emt 0:06:41]} 8. Qxe4 {[%emt 0:03:39]} Qb6 {[%emt 0:09:00]} 9. O-O {[%emt 0:06:18]} Nf6 {[%emt 0:01:11]} 10. Qh4 {[%emt 0:06:28]} cxd4 {[%emt 0:03:16]} 11. Nxd4 {[%emt 0:01:25]} Bd7 {[%emt 0:02:20]} 12. Nb3 {[%emt 0:07:18]} Qb4 {[%emt 0:05:37]} 13. c4 {[%emt 0:03:17]} Be7 {[%emt 0:09:29]} 14. Qg3 {[%emt 0:04:33]} Bc6 {[%emt 0:12:55]} 15. Bd2 {[%emt 0:08:04]} Qd6 {[%emt 0:02:50]} 16. Bf4 {[%emt 0:01:16]} Qb4 {[%emt 0:02:32]} 17. Be5 {[%emt 0:07:03]} Rd8 {[%emt 0:17:07]} 18. Nd4 {[%emt 0:07:33]} Be4 {[%emt 0:08:11]} 19. Bxe4 {[%emt 0:02:50]} Nxe4 {[%emt 0:04:19]} 20. Qxg7 {[%emt 0:00:14]} Rf8 {[%emt 0:00:20]} 21. Qxh7 {[%emt 0:11:21]} Ng5 {[%emt 0:03:48]} 22. Qc2 {[%emt 0:08:33]} Qc5 {[%emt 0:00:00]} 23. Qa4+ {[%emt 0:03:18]} 1-0

[Event "FIDE WSTC Open 65 2025"]
[Site "Prague"]
[Date "2025.02.17"]
[Round "1.24"]
[White "Gangl, Herwig"]
[Black "Joentausta, Hannu"]
[Result "0-1"]
[Annotator "NA"]
[ECO "B21"]
[WhiteElo "1826"]
[BlackElo "2097"]
[PlyCount "94"]
[EventDate "2025.02.17"]
[EventType "team-tourn"]
[EventCountry "CZE"]
[SourceTitle "playchess.com"]
[Source "ChessBase"]
[SourceQuality "1"]
[TimeControl "40/5400+30:1800+30"]

1. e4 {[%emt 0:00:05]} c5 {[%emt 0:00:12]} 2. Be2 {[%emt 0:00:04]} Nc6 {[%emt 0:00:21]} 3. f4 {[%emt 0:00:06]} d5 {[%emt 0:03:01]} 4. d3 {[%emt 0:00:44]} e6 {[%emt 0:01:37]} 5. Nf3 {[%emt 0:00:16]} Nf6 {[%emt 0:00:31]} 6. e5 {[%emt 0:01:03]} Nd7 {[%emt 0:00:22]} 7. c3 {[%emt 0:01:52]} Be7 {[%emt 0:09:03]} 8. Be3 {[%emt 0:03:43]} O-O {[%emt 0:01:06]} 9. O-O {[%emt 0:00:15]} f6 {[%emt 0:01:40]} 10. d4 {[%emt 0:01:49]} a6 {[%emt 0:05:24]} 11. Bd3 {[%emt 0:11:38]} c4 {[%emt 0:03:43]} 12. Bc2 {[%emt 0:00:22]} b5 {[%emt 0:00:35]} 13. a3 {[%emt 0:01:16]} Nb6 {[%emt 0:03:11]} 14. Nbd2 {[%emt 0:01:44]} Bd7 {[%emt 0:00:43]} 15. Qb1 {[%emt 0:11:17]} f5 {[%emt 0:01:31]} 16. g4 {[%emt 0:05:10]} g6 {[%emt 0:03:19]} 17. g5 {[%emt 0:08:11]} Qc7 {[%emt 0:01:15]} 18. Qe1 {[%emt 0:16:34]} a5 {[%emt 0:01:25]} 19. Qf2 {[%emt 0:04:51]} b4 {[%emt 0:01:35]} 20. Nb1 {[%emt 0:01:12]} Rfb8 {[%emt 0:07:42]} 21. Bc1 {[%emt 0:02:25]} Na7 {[%emt 0:12:48]} 22. h4 {[%emt 0:02:26]} Nb5 {[%emt 0:08:25]} 23. Kg2 {[%emt 0:00:26]} Be8 {[%emt 0:01:03]} 24. Rh1 {[%emt 0:01:01]} Bf8 {[%emt 0:00:46]} 25. Bd1 {[%emt 0:00:38]} bxc3 {[%emt 0:06:13]} 26. bxc3 {[%emt 0:02:21]} Na7 {[%emt 0:00:42]} 27. Ng1 {[%emt 0:00:37]} Na4 {[%emt 0:02:02]} 28. h5 {[%emt 0:01:22]} Rb7 {[%emt 0:08:46]} 29. hxg6 {[%emt 0:00:19]} hxg6 {[%emt 0:00:15]} 30. Bc2 {[%emt 0:07:30]} Rab8 {[%emt 0:00:58]} 31. Ne2 {[%emt 0:01:15]} Nb2 {[%emt 0:00:36]} 32. Qe3 {[%emt 0:01:32]} Nd3 {[%emt 0:05:05]} 33. Nd2 {[%emt 0:05:43]} Nxc1 {[%emt 0:01:01]} 34. Rhxc1 {[%emt 0:00:31]} Rb2 {[%emt 0:00:42]} 35. Bd1 {[%emt 0:03:10]} Bc6 {[%emt 0:01:47]} 36. a4 {[%emt 0:01:28]} Qd7 {[%emt 0:01:11]} 37. Rc2 {[%emt 0:01:36]} Nc8 {[%emt 0:01:05]} 38. Rxb2 {[%emt 0:00:28]} Rxb2 {[%emt 0:00:02]} 39. Nf1 {[%emt 0:00:15]} Nb6 {[%emt 0:06:03]} 40. Qc1 {[%emt 0:02:43]} Nxa4 {[%emt 0:01:58]} 41. Rxa4 {[%emt 0:30:28]} Rxe2+ {[%emt 0:30:10]} 42. Bxe2 {[%emt 0:00:29]} Bxa4 {[%emt 0:00:02]} 43. Nd2 {[%emt 0:00:00]} Qb5 {[%emt 0:00:00]} 44. Qa1 {[%emt 0:00:00]} Bc2 {[%emt 0:00:00]} 45. Qa2 {[%emt 0:00:00]} Bb3 {[%emt 0:00:00]} 46. Nxb3 {[%emt 0:00:00]} cxb3 {[%emt 0:00:00]} 47. Qb2 {[%emt 0:00:00]} Qa4 {[%emt 0:00:00]} 0-1

[Event "FIDE WSTC Open 65 2025"]
[Site "Prague"]
[Date "2025.02.17"]
[Round "1.25"]
[White "Hewson, Brian W R"]
[Black "Ogaard, Leif"]
[Result "1-0"]
[Annotator "ChessBase"]
[ECO "A07"]
[WhiteElo "2039"]
[BlackElo "2358"]
[PlyCount "71"]
[EventDate "2025.02.17"]
[EventType "team-tourn"]
[EventCountry "CZE"]
[SourceTitle "playchess.com"]
[Source "ChessBase"]
[SourceQuality "1"]
[TimeControl "40/5400+30:1800+30"]

1. Nf3 {[%emt 0:00:06]} Nf6 {[%emt 0:00:23]} 2. g3 {[%emt 0:00:10]} d5 {[%emt 0:00:34]} 3. b3 {[%emt 0:01:33]} c5 {[%emt 0:01:47]} 4. Bb2 {[%emt 0:00:51]} Nc6 {[%emt 0:01:03]} 5. d4 {[%emt 0:02:57]} Bg4 {[%emt 0:05:01]} 6. Nbd2 {[%emt 0:16:59]} Qa5 {[%emt 0:02:09]} 7. Bg2 {[%emt 0:21:33]} Bxf3 {[%emt 0:01:56]} 8. exf3 {[%emt 0:00:06]} cxd4 {[%emt 0:03:51]} 9. O-O {[%emt 0:00:20]} e5 {[%emt 0:01:15]} 10. a3 {[%emt 0:02:56]} Bd6 {[%emt 0:01:30]} 11. f4 {[%emt 0:01:27]} exf4 {[%emt 0:22:49]} 12. Re1+ {[%emt 0:10:20]} Kf8 {[%emt 0:01:19]} 13. Nf3 {[%emt 0:00:17]} fxg3 {[%emt 0:00:39]} 14. hxg3 {[%emt 0:00:12]} h5 {[%emt 0:04:26]} 15. Nxd4 {[%emt 0:05:34]} h4 {[%emt 0:01:39]} 16. Nxc6 {[%emt 0:08:35]} bxc6 {[%emt 0:00:22]} 17. Qf3 {[%emt 0:11:47]} Ne4 {[%emt 0:07:46]} 18. Qg4 {[%emt 0:02:46]} Nf6 {[%emt 0:07:53]} 19. Bxf6 {[%emt 0:02:45]} gxf6 {[%emt 0:00:09]} 20. gxh4 {[%emt 0:00:07]} Be5 {[%emt 0:01:11]} 21. Rad1 {[%emt 0:00:38]} Qxa3 {[%emt 0:03:15]} 22. h5 {[%emt 0:02:23]} Qc5 {[%emt 0:01:55]} 23. Re2 {[%emt 0:02:28]} Rd8 {[%emt 0:00:57]} 24. Qf5 {[%emt 0:00:35]} Qd6 {[%emt 0:03:25]} 25. Rd3 {[%emt 0:01:20]} Rb8 {[%emt 0:06:28]} 26. Rh3 {[%emt 0:02:22]} Qa3 {[%emt 0:02:02]} 27. Rhe3 {[%emt 0:00:50]} Qd6 {[%emt 0:03:10]} 28. Rh3 {[%emt 0:00:13]} a5 {[%emt 0:01:59]} 29. Rh4 {[%emt 0:00:40]} Qe6 {[%emt 0:02:44]} 30. Qxe6 fxe6 {[%emt 0:00:09]} 31. f4 {[%emt 0:01:29]} Rb4 {[%emt 0:01:00]} 32. c3 {[%emt 0:01:11]} Bxc3 {[%emt 0:01:15]} 33. Rxe6 {[%emt 0:00:05]} Rxb3 {[%emt 0:01:36]} 34. Rxc6 {[%emt 0:00:20]} d4 {[%emt 0:05:30]} 35. Rc8+ {[%emt 0:00:17]} Kg7 {[%emt 0:00:11]} 36. Rg4+ {[%emt 0:00:04]} 1-0